bitfinex/quotes_SOLUSD_20250612
["timestamp","ask_amount","ask_price","bid_price","bid_amount"]
[1749688269751,10.87267482,160.33,160.25,18.64964886]
[1749688269752,4.63542442,160.33,160.31,13.67908148]
[1749688269947,149.1,160.34,160.32,13.67908148]
[1749688270753,149.1,160.34,160.33,13.67908148]
[1749688270956,7.80812273,160.37,160.33,13.67908148]
[1749688271167,33.80812273,160.37,160.33,13.67908148]
[1749688271360,13.67908148,160.36,160.31,13.67908148]
[1749688271560,6.23635796,160.35,160.31,13.67908148]
[1749688271767,6.23635796,160.35,160.26,0.42648471]
[1749688271967,6.23635796,160.35,160.31,13.67908148]
[1749688272271,6.23635796,160.35,160.32,13.67908148]
[1749688272471,19.91543944,160.35,160.26,0.42648471]
[1749688272661,16.00359159,160.34,160.29,13.67908148]
[1749688272859,6.23635796,160.35,160.25,26.0]
[1749688272860,13.67908148,160.33,160.25,26.0]
[1749688273059,13.67908148,160.33,160.29,13.67908148]
[1749688273568,19.91658372,160.33,160.25,26.0]
[1749688273765,19.91658372,160.33,160.29,13.67908148]
[1749688273956,19.91658372,160.33,160.25,26.0]
[1749688274155,19.91658372,160.33,160.29,13.67908148]
[1749688274358,19.91658372,160.33,160.25,26.0]
[1749688274569,6.23750224,160.33,160.29,13.67908148]
[1749688274968,8.56197498,160.33,160.29,13.67908148]
[1749688275165,6.23750224,160.33,160.29,13.67908148]
[1749688275477,8.56214227,160.33,160.29,13.67908148]
[1749688275878,4.64460973,160.34,160.3,13.67908148]
[1749688276075,6.97000564,160.36,160.33,13.67908148]
[1749688276262,2.32564264,160.36,160.35,13.67908148]
[1749688276462,6.23534719,160.38,160.35,13.67908148]
[1749688276660,2.325795,160.37,160.35,13.67908148]
[1749688276876,2.32579413,160.37,160.35,13.67908148]
[1749688277073,2.32591038,160.37,160.35,13.67908148]
[1749688277270,6.23534719,160.38,160.36,13.67908148]
[1749688277271,2.32601542,160.38,160.36,13.67908148]
[1749688277476,2.32628244,160.4,160.37,13.67908148]
[1749688277677,2.32628244,160.4,160.32,39.67908148]
[1749688277678,1.5338,160.41,160.39,13.67908148]
[1749688278065,7.76785965,160.41,160.32,39.67908148]
[1749688278266,13.67908148,160.4,160.35,13.67908148]
[1749688278776,12.41246938,160.41,160.32,39.67908148]
[1749688278984,6.23405965,160.41,160.38,13.67908148]
[1749688279178,36.8783697,160.42,160.38,13.67908148]
[1749688279385,32.23366351,160.42,160.39,13.67908148]
[1749688279578,36.87586173,160.42,160.38,13.67908148]
[1749688279962,32.23366351,160.42,160.38,13.67908148]
[1749688280162,36.87586173,160.42,160.38,13.67908148]
[1749688280888,50.55494321,160.42,160.32,26.0]
[1749688281076,45.91274499,160.42,160.38,13.67908148]
[1749688281479,13.67908148,160.41,160.32,39.67908148]
[1749688281672,13.67908148,160.41,160.37,13.67908148]
[1749688282864,13.67908148,160.41,160.36,13.67908148]
[1749688283297,6.23441396,160.4,160.36,13.67908148]
[1749688283796,13.67908148,160.39,160.34,13.67908148]
[1749688283971,6.23441396,160.4,160.34,13.67908148]
[1749688284176,13.67908148,160.39,160.35,13.67908148]
[1749688284881,2.32656346,160.39,160.35,13.67908148]
[1749688285087,2.32673259,160.39,160.35,13.67908148]
[1749688285396,2.32673535,160.39,160.36,13.67908148]
[1749688285580,19.91349544,160.4,160.36,13.67908148]
[1749688285897,19.91349544,160.4,160.35,13.67908148]
[1749688287203,6.23441396,160.4,160.36,13.67908148]
[1749688287503,8.56203727,160.4,160.36,13.67908148]
[1749688288110,22.24115461,160.4,160.36,13.67908148]
[1749688288273,19.91349544,160.4,160.36,13.67908148]
[1749688290488,19.91349544,160.4,160.35,13.67908148]
[1749688290885,6.23441396,160.4,160.35,13.67908148]
[1749688291086,19.91349544,160.4,160.3,26.0]
[1749688291268,13.67908148,160.38,160.34,13.67908148]
[1749688292008,13.67908148,160.39,160.34,13.67908148]
[1749688292306,6.23519142,160.38,160.34,13.67908148]
[1749688292679,19.9142729,160.38,160.34,13.67908148]
[1749688293209,19.9142729,160.38,160.25,14.3668]
[1749688293210,13.67908148,160.35,160.25,14.3668]
[1749688293376,13.67908148,160.32,160.25,7.8901]
[1749688293574,13.67908148,160.32,160.27,13.67908148]
[1749688294092,26.14216157,160.36,160.25,7.8901]
[1749688294093,13.67908148,160.3,160.25,19.91908148]
[1749688294405,19.91747438,160.3,160.25,19.91908148]
[1749688294886,13.67908148,160.31,160.26,13.67908148]
[1749688295396,19.91660643,160.32,160.27,13.67908148]
[1749688295596,39.67908148,160.32,160.27,13.67908148]
[1749688295787,26.0,160.32,160.28,13.67908148]
[1749688296001,19.91634012,160.33,160.29,13.67908148]
[1749688296581,19.91634012,160.33,160.25,6.24]
[1749688296801,19.91634012,160.33,160.29,13.67908148]
[1749688297004,45.91595624,160.34,160.29,13.67908148]
[1749688297213,39.67908148,160.34,160.3,13.67908148]
[1749688297385,26.0,160.34,160.25,6.24]
[1749688297582,26.0,160.34,160.3,13.67908148]
[1749688297781,26.0,160.34,160.31,13.67908148]
[1749688299096,45.91505054,160.36,160.31,13.67908148]
[1749688300094,39.67908148,160.36,160.25,32.52432314]
[1749688300279,39.67908148,160.36,160.31,13.67908148]
[1749688300904,39.67908148,160.36,160.27,0.42648471]
[1749688301092,45.91532405,160.36,160.31,13.67908148]
[1749688301795,26.0,160.36,160.32,13.67908148]
[1749688302186,32.2359836,160.36,160.32,13.67908148]
[1749688302389,45.91506508,160.36,160.32,13.67908148]
[1749688303491,26.0,160.36,160.27,1.81122314]
[1749688303691,32.23598672,160.36,160.32,13.67908148]
[1749688305586,45.9150682,160.36,160.27,1.5269]
[1749688305788,45.9150682,160.36,160.32,13.67908148]
[1749688307299,6.23598672,160.36,160.32,13.67908148]
[1749688307497,169.01473089,160.37,160.32,13.67908148]
[1749688307691,149.1,160.37,160.34,13.67908148]
[1749688307901,0.14216157,160.4,160.35,13.67908148]
[1749688307902,13.67908148,160.4,160.35,13.67908148]
[1749688308099,26.0,160.4,160.35,13.67908148]
[1749688308298,39.67908148,160.4,160.35,13.67908148]
[1749688308508,39.67908148,160.4,160.29,6.12]
[1749688308509,26.0,160.4,160.36,13.67908148]
[1749688308807,26.0,160.4,160.32,13.67908148]
[1749688308998,26.0,160.4,160.3,18.64964886]
[1749688308999,45.91361835,160.4,160.35,13.67908148]
[1749688309189,13.67908148,160.39,160.35,13.67908148]
[1749688309516,13.67908148,160.39,160.34,13.67908148]
[1749688311109,6.23519142,160.38,160.34,13.67908148]
[1749688311489,19.91404359,160.39,160.34,13.67908148]
[1749688312190,6.23496211,160.39,160.34,13.67908148]
[1749688312394,6.23496211,160.39,160.3,18.64964886]
[1749688312395,13.67908148,160.38,160.33,13.67908148]
[1749688313206,13.67908148,160.37,160.32,13.67908148]
[1749688314414,13.67908148,160.36,160.31,13.67908148]
[1749688314617,13.67908148,160.33,160.29,19.79908148]
[1749688315299,19.91626408,160.33,160.29,19.79908148]
[1749688315999,6.2371826,160.33,160.29,19.79908148]
[1749688316201,19.91626408,160.33,160.29,19.79908148]
[1749688317223,32.23635796,160.35,160.29,19.79908148]
[1749688317421,13.67908148,160.34,160.29,19.79908148]
[1749688317617,13.67908148,160.33,160.29,6.12]
[1749688317820,13.67908148,160.32,160.29,6.12]
[1749688318126,13.67908148,160.32,160.26,5.98]
[1749688318300,13.67908148,160.32,160.27,13.67908148]
[1749688318922,19.91684655,160.32,160.27,13.67908148]
[1749688319598,19.91684655,160.32,160.28,13.67908148]
[1749688321114,13.67908148,160.3,160.26,5.98]
[1749688322403,13.67908148,160.28,160.26,5.98]
[1749688323108,6.23947089,160.27,160.26,5.98]
[1749688323628,6.23912528,160.28,160.26,5.98]
[1749688324015,19.91820676,160.28,160.26,5.98]
[1749688326124,13.67908148,160.27,160.26,5.98]
[1749688327524,39.67908148,160.27,160.2,13.67908148]
[1749688327724,13.67908148,160.23,160.19,13.67908148]
[1749688327929,6.24141805,160.22,160.18,13.67908148]
[1749688328335,19.92022862,160.23,160.18,13.67908148]
[1749688329119,19.92022862,160.23,160.17,5.98]
[1749688329120,13.67908148,160.23,160.17,5.98]
[1749688329345,19.91982727,160.24,160.19,13.67908148]
[1749688329512,19.91982727,160.24,160.17,5.98]
[1749688329713,19.91982727,160.24,160.19,13.67908148]
[1749688330328,13.67908148,160.23,160.18,13.67908148]
[1749688330815,6.24074579,160.24,160.18,13.67908148]
[1749688331115,13.67908148,160.23,160.18,13.67908148]
[1749688331517,13.67908148,160.21,160.17,5.98]
[1749688332235,19.92099342,160.21,160.17,5.98]
[1749688332938,6.24191194,160.21,160.17,5.98]
[1749688333116,19.92099342,160.21,160.17,5.98]
[1749688334232,41.6015976,160.24,160.17,5.98]
[1749688334431,6.24026723,160.25,160.2,13.67908148]
[1749688334609,13.67908148,160.24,160.19,13.67908148]
[1749688334815,13.67908148,160.23,160.18,13.67908148]
[1749688335015,13.67908148,160.22,160.18,13.67908148]
[1749688335333,13.67908148,160.21,160.17,5.98]
[1749688335534,13.67908148,160.2,160.17,5.98]
[1749688335916,13.67908148,160.21,160.17,5.98]
[1749688336317,13.67908148,160.21,160.17,19.65908148]
[1749688336725,13.67908148,160.21,160.17,5.98]
[1749688337836,32.24155314,160.22,160.17,5.98]
[1749688338136,13.67908148,160.21,160.17,19.65908148]
[1749688338325,6.24219725,160.2,160.17,5.98]
[1749688339238,13.67908148,160.19,160.17,5.98]
[1749688339424,13.67908148,160.18,160.17,5.98]
[1749688340152,13.67908148,160.18,160.12,13.67908148]
[1749688340320,26.0,160.17,160.13,13.67908148]
[1749688340842,13.67908148,160.19,160.14,13.67908148]
[1749688341043,13.67908148,160.2,160.15,13.67908148]
[1749688341225,19.92138996,160.2,160.15,13.67908148]
[1749688341426,6.24230848,160.2,160.14,13.67908148]
[1749688341639,13.67908148,160.18,160.09,5.9]
[1749688341942,26.0,160.17,160.13,13.67908148]
[1749688343019,26.0,160.17,160.09,5.9]
[1749688343020,32.24339999,160.17,160.09,5.9]
[1749688343221,32.24339999,160.17,160.13,13.67908148]
[1749688344438,45.92248147,160.17,160.13,13.67908148]
[1749688344746,13.67908148,160.16,160.11,13.67908148]
[1749688345337,45.92248147,160.17,160.12,13.67908148]
[1749688345733,45.92248147,160.17,160.09,5.9]
[1749688345734,26.0,160.17,160.09,5.9]
[1749688345938,6.24273039,160.19,160.15,13.67908148]
[1749688346620,19.92181187,160.19,160.14,13.67908148]
[1749688347325,13.67908148,160.18,160.14,13.67908148]
[1749688348039,13.67908148,160.17,160.13,13.67908148]
[1749688348749,6.24414611,160.15,160.11,13.67908148]
[1749688349045,13.67908148,160.13,160.09,5.9]
[1749688350031,13.67908148,160.11,160.09,5.9]
[1749688350237,26.0,160.12,160.09,5.9]
[1749688350424,39.67908148,160.12,160.09,5.9]
[1749688350826,6.24570607,160.11,160.09,5.9]
[1749688351025,19.92478755,160.11,160.09,5.9]
[1749688351248,13.67908148,160.1,160.09,5.9]
[1749688352030,13.67908148,160.1,160.05,13.67908148]
[1749688352031,13.67908148,160.1,160.04,13.67908148]
[1749688352340,13.67908148,160.09,160.04,13.67908148]
[1749688352543,32.32873034,160.1,160.05,13.67908148]
[1749688352729,35.5417837,160.09,160.05,13.67908148]
[1749688352936,35.5417837,160.09,160.04,13.67908148]
[1749688353251,13.67908148,160.06,160.02,5.9]
[1749688353440,13.67908148,160.06,160.02,19.57908148]
[1749688353826,13.67908148,160.07,160.02,19.57908148]
[1749688354033,13.67908148,160.06,160.02,5.9]
[1749688354741,6.24804748,160.05,160.02,5.9]
[1749688355254,6.24804748,160.05,160.02,19.57908148]
[1749688356543,35.54724767,160.05,160.02,5.9]
[1749688356928,35.54724767,160.05,159.95,51.46951043]
[1749688356929,59.71170361,160.05,159.92,1.6591]
[1749688357133,59.71170361,160.05,160.01,13.67908148]
[1749688357134,47.86816619,160.05,160.01,13.67908148]
[1749688357353,61.54724767,160.05,160.01,13.67908148]
[1749688357549,61.54724767,160.05,159.94,18.64964886]
[1749688357550,47.86816619,160.05,160.02,13.67908148]
[1749688357927,47.86816619,160.05,159.95,0.28432314]
[1749688357928,61.54724767,160.05,160.0,13.67908148]
[1749688358131,13.67908148,160.04,160.0,13.67908148]
[1749688358342,26.0,160.02,159.94,18.64964886]
[1749688358745,6.24960939,160.01,159.99,13.67908148]
[1749688359633,6.24960939,160.01,160.0,13.67908148]
[1749688360066,6.24960939,160.01,159.94,18.64964886]
[1749688360359,35.55271436,160.01,159.93,5.9]
[1749688360560,13.67908148,160.0,159.93,5.9]
[1749688360764,13.67908148,159.99,159.95,13.67908148]
[1749688360936,6.25078134,159.98,159.95,13.67908148]
[1749688361137,6.25078134,159.98,159.93,5.9]
[1749688361138,21.8777347,159.98,159.93,5.9]
[1749688361339,13.67908148,159.99,159.95,13.67908148]
[1749688362146,13.67908148,159.99,159.93,5.9]
[1749688362450,13.67908148,160.0,159.95,13.67908148]
[1749688362657,13.67908148,160.01,159.97,13.67908148]
[1749688362832,13.67908148,160.01,159.96,13.67908148]
[1749688363033,13.67908148,160.0,159.96,13.67908148]
[1749688363230,34.1106,160.02,159.96,13.67908148]
[1749688363231,13.67908148,160.01,159.96,13.67908148]
[1749688363545,188.77908148,160.04,160.0,13.67908148]
[1749688363870,13.67908148,160.05,160.01,13.67908148]
[1749688364167,21.49338148,160.06,160.01,13.67908148]
[1749688364667,21.49338148,160.06,159.95,6.3752]
[1749688364876,7.8143,160.06,160.01,13.67908148]
[1749688365035,26.0,160.07,160.02,13.67908148]
[1749688365036,39.67908148,160.07,160.02,13.67908148]
[1749688365849,26.0,160.07,160.02,13.67908148]
[1749688366148,13.67908148,160.08,160.04,13.67908148]
[1749688366347,13.67908148,160.08,160.03,13.67908148]
[1749688367856,196.59338148,160.1,160.05,13.67908148]
[1749688368060,196.59338148,160.1,160.0,13.67908148]
[1749688368061,1.5874,160.1,160.06,13.67908148]
[1749688368256,1.5874,160.1,160.07,13.67908148]
[1749688368449,26.0,160.12,160.07,13.67908148]
[1749688368650,13.67908148,160.11,160.07,13.67908148]
[1749688368852,32.24536048,160.12,160.05,13.67908148]
[1749688369054,21.37654348,160.13,160.08,13.67908148]
[1749688369260,13.67908148,160.15,160.1,13.67908148]
[1749688369642,14.01612915,160.18,160.12,13.67908148]
[1749688369868,13.67908148,160.17,160.13,13.67908148]
[1749688370044,26.0,160.17,160.13,13.67908148]
[1749688370358,13.67908148,160.17,160.12,13.67908148]
[1749688370562,39.67908148,160.17,160.12,13.67908148]
[1749688370749,26.0,160.17,160.12,13.67908148]
[1749688370954,39.67908148,160.17,160.12,13.67908148]
[1749688371360,13.67908148,160.15,160.11,13.67908148]
[1749688371550,32.24355348,160.17,160.11,13.67908148]
[1749688371551,13.67908148,160.16,160.11,13.67908148]
[1749688371950,32.24355348,160.17,160.12,13.67908148]
[1749688372146,45.92263496,160.17,160.12,13.67908148]
[1749688372347,32.24355348,160.17,160.12,13.67908148]
[1749688372637,45.92263496,160.17,160.12,13.67908148]
[1749688373166,13.67908148,160.16,160.11,13.67908148]
[1749688373379,6.24414611,160.15,160.12,13.67908148]
[1749688374155,6.24414611,160.15,160.11,13.67908148]
[1749688374359,6.24414611,160.15,160.08,5.9]
[1749688374360,19.92322759,160.15,160.08,5.9]
[1749688374544,19.92322759,160.15,160.11,13.67908148]
[1749688375979,19.92283772,160.16,160.11,13.67908148]
[1749688376555,35.53222832,160.16,160.11,13.67908148]
[1749688376887,13.67908148,160.15,160.11,13.67908148]
[1749688377250,13.67908148,160.15,160.08,5.9]
[1749688377461,13.67908148,160.14,160.08,5.9]
[1749688377669,13.67908148,160.12,160.08,19.57908148]
[1749688377851,6.24570607,160.11,160.08,5.9]
[1749688378163,13.67908148,160.1,160.08,5.9]
[1749688378365,6.24570607,160.11,160.08,5.9]
[1749688379752,19.92478755,160.11,160.08,5.9]
[1749688380558,13.67908148,160.09,160.08,5.9]
[1749688380868,13.67908148,160.09,160.02,1.6614]
[1749688380869,13.67908148,160.09,160.02,13.67908148]
[1749688381177,13.67908148,160.08,160.03,13.67908148]
[1749688381680,13.67908148,160.09,160.04,13.67908148]
[1749688381881,6.24570607,160.11,160.08,13.67908148]
[1749688382088,19.92478755,160.11,160.07,13.67908148]
[1749688382375,6.24570607,160.11,160.0,21.13118148]
[1749688382561,13.67908148,160.09,160.04,13.67908148]
[1749688382761,13.67908148,160.09,160.05,13.67908148]
[1749688383175,13.67908148,160.1,160.05,13.67908148]
[1749688383372,13.67908148,160.1,160.0,21.13118148]
[1749688383675,21.85997126,160.11,160.03,13.67908148]
[1749688383867,13.67908148,160.08,160.03,13.67908148]
[1749688384073,21.85997126,160.11,160.04,13.67908148]
[1749688384074,6.24726682,160.07,160.04,13.67908148]
[1749688384258,6.24726682,160.07,160.03,13.67908148]
[1749688384458,6.24726682,160.07,160.0,7.4521]
[1749688384459,6.24726682,160.07,160.0,21.13118148]
[1749688384668,6.24726682,160.07,160.04,13.67908148]
[1749688385276,6.24726682,160.07,160.03,13.67908148]
[1749688385755,6.24726682,160.07,160.04,13.67908148]
[1749688386358,29.29541766,160.09,160.04,13.67908148]
[1749688386556,13.67908148,160.08,160.04,13.67908148]
[1749688387176,13.67908148,160.07,160.0,7.4521]
[1749688387353,13.67908148,160.06,160.0,5.9]
[1749688387558,13.67908148,160.05,160.01,13.67908148]
[1749688387866,1.5205,160.08,160.03,13.67908148]
[1749688387867,15.19958148,160.08,160.03,13.67908148]
[1749688388059,13.67908148,160.07,160.03,13.67908148]
[1749688388258,13.67908148,160.07,160.02,13.67908148]
[1749688388458,6.24765712,160.06,160.02,13.67908148]
[1749688388862,6.24765712,160.06,160.03,13.67908148]
[1749688389488,6.24765712,160.06,160.0,5.9]
[1749688389783,6.24765712,160.06,160.03,13.67908148]
[1749688390471,13.67908148,160.07,160.03,13.67908148]
[1749688390472,6.24726682,160.07,160.03,13.67908148]
[1749688390671,6.24702032,160.08,160.05,13.67908148]
[1749688391183,13.67908148,160.07,160.0,5.9]
[1749688391389,13.67908148,160.07,160.02,13.67908148]
[1749688391868,13.67908148,160.06,160.02,13.67908148]
[1749688392180,6.24702032,160.08,160.02,13.67908148]
[1749688392181,13.67908148,160.07,160.02,13.67908148]
[1749688392771,6.24765712,160.06,160.02,13.67908148]
[1749688393077,6.24765712,160.06,160.03,13.67908148]
[1749688393384,6.24765712,160.06,160.02,13.67908148]
[1749688393568,6.24765712,160.06,160.03,13.67908148]
[1749688393769,6.24765712,160.06,160.0,5.9]
[1749688393972,6.24765712,160.06,160.03,13.67908148]
[1749688394272,26.0,160.09,160.05,13.67908148]
[1749688394776,6.24687656,160.08,160.05,13.67908148]
[1749688395859,6.24687656,160.08,160.0,19.57908148]
[1749688396065,6.24687656,160.08,160.05,13.67908148]
[1749688398884,13.67908148,160.09,160.05,13.67908148]
[1749688399066,13.67908148,160.09,160.04,13.67908148]
[1749688399470,13.67908148,160.08,160.03,13.67908148]
[1749688399785,32.24609618,160.1,160.06,13.67908148]
[1749688399982,6.24609618,160.1,160.06,13.67908148]
[1749688400383,6.24585518,160.11,160.07,13.67908148]
[1749688401185,6.24585518,160.11,160.02,1.5446]
[1749688401186,19.92493666,160.11,160.06,13.67908148]
[1749688401573,19.92493666,160.11,160.07,13.67908148]
[1749688401574,6.24585518,160.11,160.07,13.67908148]
[1749688401776,6.24585518,160.11,160.08,13.67908148]
[1749688401988,6.24585518,160.11,160.07,13.67908148]
[1749688402166,19.92493666,160.11,160.05,13.67908148]
[1749688402370,13.67908148,160.1,160.06,13.67908148]
[1749688402771,19.92493666,160.11,160.06,13.67908148]
[1749688405887,19.92493666,160.11,160.07,13.67908148]
[1749688406187,6.24537468,160.12,160.08,13.67908148]
[1749688406699,6.24537468,160.12,160.09,13.67908148]
[1749688407275,6.24414611,160.15,160.11,13.67908148]
[1749688407482,6.24414611,160.15,160.12,13.67908148]
[1749688407686,6.24414611,160.15,160.08,13.67908148]
[1749688407996,6.24414611,160.15,160.11,13.67908148]
[1749688408896,6.24414611,160.15,160.12,13.67908148]
[1749688409986,6.24414611,160.15,160.05,0.28432314]
[1749688410187,19.92322759,160.15,160.11,13.67908148]
[1749688410596,6.24414611,160.15,160.11,13.67908148]
[1749688410978,6.24414611,160.15,160.08,13.67908148]
[1749688411187,6.24414611,160.15,160.05,0.28432314]
[1749688411188,19.92322759,160.15,160.05,0.28432314]
[1749688411486,13.67908148,160.13,160.09,13.67908148]
[1749688411693,13.67908148,160.13,160.08,13.67908148]
[1749688411899,13.67908148,160.12,160.08,13.67908148]
[1749688412101,13.67908148,160.13,160.08,13.67908148]
[1749688412477,13.67908148,160.14,160.09,13.67908148]
[1749688412673,13.67908148,160.13,160.03,6.1981]
[1749688413006,6.24570607,160.11,160.07,13.67908148]
[1749688414099,13.67908148,160.1,160.02,27.5446]
[1749688414291,13.67908148,160.1,160.05,13.67908148]
[1749688415090,6.24648635,160.09,160.05,13.67908148]
[1749688416175,6.24648635,160.09,160.02,1.5446]
[1749688416498,6.24648635,160.09,160.05,13.67908148]
[1749688418102,6.24648635,160.09,160.06,13.67908148]
[1749688418692,6.24648635,160.09,160.02,1.5446]
[1749688419000,6.24648635,160.09,160.06,13.67908148]
[1749688419608,6.24648635,160.09,160.07,13.67908148]
[1749688420196,6.24648635,160.09,160.02,1.5446]
[1749688420405,6.24648635,160.09,160.06,13.67908148]
[1749688421712,13.67908148,160.1,160.06,13.67908148]
[1749688421910,13.67908148,160.09,160.05,13.67908148]
[1749688422102,13.67908148,160.09,160.04,13.67908148]
[1749688422305,13.67908148,160.09,160.05,13.67908148]
[1749688423808,6.24687656,160.08,160.05,13.67908148]
[1749688426145,6.24687656,160.08,160.04,13.67908148]
[1749688426703,6.24687656,160.08,160.05,13.67908148]
[1749688428499,6.24648635,160.09,160.05,13.67908148]
[1749688428889,6.24648635,160.09,160.0,19.57908148]
[1749688429093,13.67908148,160.08,160.0,5.9]
[1749688429297,13.67908148,160.07,160.02,13.67908148]
[1749688429695,47.86270222,160.09,160.0,5.9]
[1749688429696,13.67908148,160.08,160.03,13.67908148]
[1749688429891,32.24648635,160.09,160.04,13.67908148]
[1749688430214,6.24648635,160.09,160.06,13.67908148]
[1749688430413,6.24609618,160.1,160.06,13.67908148]
[1749688430603,19.92517766,160.1,160.05,13.67908148]
[1749688430994,21.86133665,160.1,160.04,13.67908148]
[1749688431201,13.67908148,160.09,160.04,13.67908148]
[1749688431508,13.67908148,160.08,160.0,5.9]
[1749688431705,13.67908148,160.08,160.03,13.67908148]
[1749688431910,13.67908148,160.09,160.04,13.67908148]
[1749688432422,6.24687656,160.08,160.05,13.67908148]
[1749688433413,6.24687656,160.08,160.06,13.67908148]
[1749688433806,6.24663489,160.09,160.06,13.67908148]
[1749688434425,13.67908148,160.1,160.06,13.67908148]
[1749688434611,19.92517766,160.1,160.06,13.67908148]
[1749688435310,19.92517766,160.1,160.05,13.67908148]
[1749688435819,13.67908148,160.09,160.0,5.9]
[1749688436024,13.67908148,160.08,160.0,5.9]
[1749688436200,13.67908148,160.08,160.03,13.67908148]
[1749688436821,13.67908148,160.08,160.04,13.67908148]
[1749688437008,6.24726682,160.07,160.04,13.67908148]
[1749688438916,21.86133665,160.1,160.04,13.67908148]
[1749688439115,13.67908148,160.08,160.04,13.67908148]
[1749688440010,13.67908148,160.08,160.0,19.57908148]
[1749688440207,13.67908148,160.08,160.03,13.67908148]
[1749688440721,13.67908148,160.04,160.0,5.9]
[1749688440933,6.24960939,160.01,159.94,1.6399]
[1749688441148,6.24960939,160.01,159.97,13.67908148]
[1749688442751,15.62316473,160.02,159.97,13.67908148]
[1749688443055,29.30224621,160.02,159.97,13.67908148]
[1749688443330,15.62316473,160.02,159.96,13.67908148]
[1749688443529,13.67908148,160.01,159.96,13.67908148]
[1749688443742,13.67908148,160.01,159.92,19.57908148]
[1749688443903,13.67908148,160.01,159.96,13.67908148]
[1749688445025,6.25,160.0,159.96,13.67908148]
[1749688446030,6.25,160.0,159.92,5.9]
[1749688446031,13.67908148,159.98,159.92,5.9]
[1749688446214,6.25,160.0,159.97,13.67908148]
[1749688446636,6.25,160.0,159.92,19.57908148]
[1749688446637,6.2497492,160.01,159.99,13.67908148]
[1749688447619,6.2497492,160.01,159.98,13.67908148]
[1749688448213,39.67908148,160.02,159.99,13.67908148]
[1749688448214,32.24930202,160.02,159.99,13.67908148]
[1749688448531,6.24893154,160.03,160.0,13.67908148]
[1749688448911,175.23218557,160.05,160.0,13.67908148]
[1749688449116,175.23218557,160.05,160.01,13.67908148]
[1749688449533,27.6111,160.06,159.96,1.5223]
[1749688449534,7.85888537,160.06,160.03,13.67908148]
[1749688449745,7.85888537,160.06,159.96,1.5223]
[1749688449938,7.85888537,160.06,160.02,13.67908148]
[1749688450130,7.85888537,160.06,159.96,1.5223]
[1749688450437,7.85888537,160.06,160.02,13.67908148]
[1749688450939,6.24778537,160.06,160.02,13.67908148]
[1749688451936,6.24778537,160.06,160.03,13.67908148]
[1749688452916,26.0,160.08,160.04,13.67908148]
[1749688453122,32.24702113,160.08,160.04,13.67908148]
[1749688453323,45.92610261,160.08,160.04,13.67908148]
[1749688455142,54.16060247,160.12,160.06,13.67908148]
[1749688455325,19.92478755,160.11,160.06,13.67908148]
[1749688455641,13.67908148,160.1,160.05,13.67908148]
[1749688455814,19.92478755,160.11,160.06,13.67908148]
[1749688457814,21.85997126,160.11,160.03,13.67908148]
[1749688458422,13.67908148,160.09,160.04,13.67908148]
[1749688459037,6.24687656,160.08,160.04,13.67908148]
[1749688461526,6.24687656,160.08,160.01,7.4716]
[1749688461527,6.24687656,160.08,160.05,13.67908148]
[1749688463446,6.24663301,160.09,160.06,13.67908148]
[1749688463850,6.24597191,160.11,160.08,13.67908148]
[1749688464035,6.24597191,160.11,160.07,13.67908148]
[1749688464227,13.67908148,160.1,160.05,13.67908148]
[1749688464642,13.67908148,160.1,160.06,13.67908148]
[1749688464842,19.92505339,160.11,160.06,13.67908148]
[1749688465259,13.67908148,160.1,160.01,7.4716]
[1749688465549,6.24648635,160.09,160.06,13.67908148]
[1749688465742,6.24621185,160.1,160.06,13.67908148]
[1749688466435,6.2459936,160.11,160.08,13.67908148]
[1749688467034,6.2459936,160.11,160.07,13.67908148]
[1749688468055,21.86025879,160.11,160.03,13.67908148]
[1749688468350,6.2459936,160.11,160.06,13.67908148]
[1749688468557,13.67908148,160.1,160.06,13.67908148]
[1749688470155,6.24648635,160.09,160.01,7.4716]
[1749688470357,19.92556783,160.09,160.05,13.67908148]
[1749688470878,6.24648635,160.09,160.05,13.67908148]
[1749688472538,6.24648635,160.09,160.01,7.4716]
[1749688472744,6.24648635,160.09,160.05,13.67908148]
[1749688473330,13.67908148,160.08,160.04,13.67908148]
[1749688473935,6.24609618,160.1,160.04,13.67908148]
[1749688474136,13.67908148,160.09,160.04,13.67908148]
[1749688475255,13.67908148,160.09,160.01,7.4716]
[1749688475438,13.67908148,160.09,160.04,13.67908148]
[1749688476464,6.24687656,160.08,160.04,13.67908148]
[1749688477639,19.92595804,160.08,160.03,13.67908148]
[1749688478239,19.92595804,160.08,160.04,13.67908148]
[1749688480464,21.86133665,160.1,160.04,13.67908148]
[1749688480665,13.67908148,160.09,160.04,13.67908148]
[1749688481751,6.24687656,160.08,160.04,13.67908148]
[1749688483186,19.92595804,160.08,160.01,7.4716]
[1749688483478,43.49744944,160.08,160.01,5.9]